[Event "*** Titled Tuesday Blitz"]
[Site "Chess.com"]
[Date "2018.07.03"]
[Round "1"]
[White "Opening_Prep"]
[Black "Zaven_ChessMood"]
[Result "0-1"]
[WhiteElo "2432"]
[BlackElo "2885"]
[TimeControl "180+2"]
[EndTime "13:07:47 PDT"]
[Termination "Zaven_ChessMood won by resignation"]

1. d4 {[%clk 0:03:01.3]} 1... Nf6 {[%clk 0:02:56.4]} 2. Bf4 {[%clk 0:02:58.6]}
2... g6 {[%clk 0:02:57.1]} 3. Nc3 {[%clk 0:02:58.6]} 3... d6 {[%clk 0:02:58.6]}
4. e4 {[%clk 0:02:59.1]} 4... Bg7 {[%clk 0:03:00.2]} 5. Qd2 {[%clk 0:03:00.3]}
5... Nc6 {[%clk 0:03:01.6]} 6. Nge2 {[%clk 0:02:51.6]} 6... e5 {[%clk
0:03:00.3]} 7. dxe5 {[%clk 0:02:47.6]} 7... Nxe5 {[%clk 0:03:01.1]} 8. Nd4
{[%clk 0:02:35.7]} 8... O-O {[%clk 0:02:57.9]} 9. O-O-O {[%clk 0:02:33.6]} 9...
c6 {[%clk 0:02:58.7]} 10. Nb3 {[%clk 0:02:28.1]} 10... Nh5 {[%clk 0:02:43.6]}
11. Bh6 {[%clk 0:02:10]} 11... Bxh6 {[%clk 0:02:37.6]} 12. Qxh6 {[%clk
0:02:11.9]} 12... Qf6 {[%clk 0:02:38.1]} 13. Qd2 {[%clk 0:02:02.7]} 13... a5
{[%clk 0:02:38.2]} 14. a4 {[%clk 0:01:52.8]} 14... b5 {[%clk 0:02:37.3]} 15.
axb5 {[%clk 0:01:48]} 15... a4 {[%clk 0:02:37.1]} 16. Nd4 {[%clk 0:01:46.4]}
16... a3 {[%clk 0:02:37.2]} 17. b3 {[%clk 0:01:37.7]} 17... c5 {[%clk
0:02:31.8]} 18. Nd5 {[%clk 0:01:31.2]} 18... Qg7 {[%clk 0:02:29.7]} 19. f4
{[%clk 0:01:05.2]} 19... Nxf4 {[%clk 0:02:27.2]} 20. Qxf4 {[%clk 0:00:59.9]}
20... cxd4 {[%clk 0:02:25.2]} 21. Nf6+ {[%clk 0:00:57]} 21... Kh8 {[%clk
0:02:25.7]} 22. h4 {[%clk 0:00:58.6]} 22... Bg4 {[%clk 0:02:18.9]} 23. Nxg4
{[%clk 0:00:52.3]} 23... a2 {[%clk 0:02:19.2]} 24. Kb2 {[%clk 0:00:50.5]} 24...
Nxg4 {[%clk 0:02:20.1]} 25. Bd3 {[%clk 0:00:40.7]} 25... h5 {[%clk 0:02:17.1]}
26. Qxd6 {[%clk 0:00:40.8]} 26... Ne5 {[%clk 0:02:13.3]} 27. b6 {[%clk
0:00:24.9]} 27... Rfd8 {[%clk 0:02:13]} 28. Qc5 {[%clk 0:00:23.5]} 28... Rac8
{[%clk 0:02:12.9]} 29. Qb4 {[%clk 0:00:23]} 29... Qf6 {[%clk 0:02:13.9]} 30. b7
{[%clk 0:00:22.5]} 30... Rb8 {[%clk 0:02:14]} 31. Rhf1 {[%clk 0:00:22.9]} 31...
Qc6 {[%clk 0:02:14.5]} 32. Qe7 {[%clk 0:00:17.6]} 32... Qc3+ {[%clk 0:02:12.1]}
33. Kxa2 {[%clk 0:00:19.1]} 33... Ra8+ {[%clk 0:02:11]} 34. bxa8=Q {[%clk
0:00:18]} 34... Rxa8+ {[%clk 0:02:12.6]} 35. Qa3 {[%clk 0:00:19.3]} 35... Rxa3+
{[%clk 0:02:13.4]} 36. Kxa3 {[%clk 0:00:21.2]} 36... Kg7 {[%clk 0:02:12.4]} 37.
Ka2 {[%clk 0:00:21.4]} 37... Ng4 {[%clk 0:02:13.2]} 38. Rc1 {[%clk 0:00:18.2]}
38... Ne3 {[%clk 0:02:12.9]} 39. Rf2 {[%clk 0:00:19.6]} 39... Ng4 {[%clk
0:02:12.9]} 40. Re2 {[%clk 0:00:19.5]} 40... Ne5 {[%clk 0:02:14]} 41. Rd1 {[%clk
0:00:20]} 41... Nc6 {[%clk 0:02:14.7]} 42. Kb1 {[%clk 0:00:21.1]} 42... Qa5
{[%clk 0:02:14.2]} 43. Kc1 {[%clk 0:00:18.7]} 43... Nb4 {[%clk 0:02:11.2]} 44.
Rf2 {[%clk 0:00:18.1]} 44... f6 {[%clk 0:01:48.4]} 45. Bc4 {[%clk 0:00:18.9]}
45... Qa1+ {[%clk 0:01:42.7]} 46. Kd2 {[%clk 0:00:20.1]} 46... Qc3+ {[%clk
0:01:44.3]} 47. Kc1 {[%clk 0:00:21.3]} 47... Qe3+ {[%clk 0:01:44.2]} 48. Rfd2
{[%clk 0:00:21.8]} 48... Na2+ {[%clk 0:01:45.2]} 49. Kb2 {[%clk 0:00:22.5]}
49... Nc3 {[%clk 0:01:46.8]} 50. Rd3 {[%clk 0:00:22.6]} 50... Nxd1+ {[%clk
0:01:46.2]} 51. Rxd1 {[%clk 0:00:23.3]} 51... Qxe4 {[%clk 0:01:47.7]} 52. Bd3
{[%clk 0:00:24.6]} 52... Qxh4 {[%clk 0:01:48.4]} 53. b4 {[%clk 0:00:25.1]} 53...
Qg3 {[%clk 0:01:49.1]} 54. Be4 {[%clk 0:00:25.5]} 54... Qc3+ {[%clk 0:01:49.3]}
0-1

[Event "*** Titled Tuesday Blitz"]
[Site "Chess.com"]
[Date "2018.07.03"]
[Round "1"]
[White "chessking2151"]
[Black "Hrant_ChessMood"]
[Result "1-0"]
[WhiteElo "2467"]
[BlackElo "2897"]
[TimeControl "180+2"]
[EndTime "13:07:51 PDT"]
[Termination "chessking2151 won by resignation"]

1. e4 {[%clk 0:03:01.9]} 1... Nf6 {[%clk 0:03:00.4]} 2. e5 {[%clk 0:03:02]} 2...
Nd5 {[%clk 0:03:01.6]} 3. d4 {[%clk 0:03:02.7]} 3... d6 {[%clk 0:03:02.9]} 4.
Nf3 {[%clk 0:03:03.8]} 4... Nc6 {[%clk 0:03:03.8]} 5. c4 {[%clk 0:02:48.9]} 5...
Nb6 {[%clk 0:03:04]} 6. exd6 {[%clk 0:02:49.9]} 6... exd6 {[%clk 0:03:04.6]} 7.
Nc3 {[%clk 0:02:47.1]} 7... Bg4 {[%clk 0:03:04.9]} 8. Be3 {[%clk 0:02:45.1]}
8... Be7 {[%clk 0:03:05.3]} 9. h3 {[%clk 0:02:44.8]} 9... Bh5 {[%clk 0:03:04.9]}
10. b3 {[%clk 0:02:28]} 10... O-O {[%clk 0:03:05.1]} 11. Be2 {[%clk 0:02:28.8]}
11... f5 {[%clk 0:03:03.9]} 12. O-O {[%clk 0:02:20.3]} 12... Bf6 {[%clk
0:02:49.1]} 13. Qd2 {[%clk 0:02:14.6]} 13... Qd7 {[%clk 0:02:41.6]} 14. d5
{[%clk 0:01:43.7]} 14... Bxf3 {[%clk 0:02:37.1]} 15. Bxf3 {[%clk 0:01:39.5]}
15... Ne5 {[%clk 0:02:37.9]} 16. Be2 {[%clk 0:01:39.4]} 16... Rae8 {[%clk
0:02:38.9]} 17. Rad1 {[%clk 0:01:27.6]} 17... Ng6 {[%clk 0:02:35.8]} 18. Rfe1
{[%clk 0:01:25]} 18... Be5 {[%clk 0:02:16.3]} 19. c5 {[%clk 0:01:11.6]} 19... f4
{[%clk 0:02:02.4]} 20. Bd4 {[%clk 0:01:10]} 20... Bxd4 {[%clk 0:01:41.8]} 21.
Qxd4 {[%clk 0:01:11.9]} 21... dxc5 {[%clk 0:01:43.1]} 22. Qxc5 {[%clk
0:01:13.8]} 22... Qd6 {[%clk 0:01:44.3]} 23. Qxd6 {[%clk 0:00:59.3]} 23... cxd6
{[%clk 0:01:46.2]} 24. Nb5 {[%clk 0:01:00.6]} 24... Nc8 {[%clk 0:01:45.9]} 25.
Bg4 {[%clk 0:00:58.7]} 25... a6 {[%clk 0:01:33]} 26. Bxc8 {[%clk 0:00:42.9]}
26... axb5 {[%clk 0:01:32.8]} 27. Bxb7 {[%clk 0:00:43.5]} 27... Ne5 {[%clk
0:01:30.5]} 28. a4 {[%clk 0:00:37.5]} 28... Rb8 {[%clk 0:01:24.6]} 29. Bc6
{[%clk 0:00:35]} 29... bxa4 {[%clk 0:01:22.1]} 30. bxa4 {[%clk 0:00:36.9]} 30...
Rb2 {[%clk 0:01:17.4]} 31. a5 {[%clk 0:00:34.9]} 31... g5 {[%clk 0:01:09.7]} 32.
a6 {[%clk 0:00:27.1]} 32... Rf7 {[%clk 0:01:10.2]} 33. Rxe5 {[%clk 0:00:11.4]}
33... dxe5 {[%clk 0:01:12.1]} 34. d6 {[%clk 0:00:12.8]} 34... Rf8 {[%clk
0:01:06.3]} 35. d7 {[%clk 0:00:10.3]} 35... Rd8 {[%clk 0:01:04.3]} 36. a7 {[%clk
0:00:11.6]} 36... Ra2 {[%clk 0:01:05.6]} 37. Bd5+ {[%clk 0:00:12.4]} 37... Kf8
{[%clk 0:01:05.9]} 38. Bxa2 {[%clk 0:00:14.3]} 38... Ke7 {[%clk 0:01:07.5]} 39.
Bc4 {[%clk 0:00:10.1]} 39... e4 {[%clk 0:01:07.3]} 40. Bd5 {[%clk 0:00:10.3]}
40... e3 {[%clk 0:01:06.7]} 41. fxe3 {[%clk 0:00:11.6]} 41... fxe3 {[%clk
0:01:08.6]} 42. a8=Q {[%clk 0:00:13.1]} 42... e2 {[%clk 0:01:10.5]} 43. Re1
{[%clk 0:00:14]} 43... Rxa8 {[%clk 0:01:10.2]} 44. Bxa8 {[%clk 0:00:14.9]} 1-0

[Event "*** Titled Tuesday Blitz"]
[Site "Chess.com"]
[Date "2018.07.03"]
[Round "1"]
[White "BlackBoarder"]
[Black "W_Amadeus"]
[Result "1/2-1/2"]
[WhiteElo "2243"]
[BlackElo "2581"]
[TimeControl "180+2"]
[EndTime "13:08:02 PDT"]
[Termination "Game drawn by repetition"]

1. e4 {[%clk 0:02:32.4]} 1... e5 {[%clk 0:03:00.3]} 2. Nf3 {[%clk 0:02:31.8]}
2... Nc6 {[%clk 0:03:01.2]} 3. Nc3 {[%clk 0:02:25.2]} 3... Nf6 {[%clk
0:03:01.7]} 4. Bb5 {[%clk 0:02:25.4]} 4... Nd4 {[%clk 0:03:02.3]} 5. Bc4 {[%clk
0:02:25.4]} 5... Bc5 {[%clk 0:03:01.8]} 6. d3 {[%clk 0:02:23.8]} 6... d6 {[%clk
0:02:59.6]} 7. Na4 {[%clk 0:02:24.8]} 7... b5 {[%clk 0:02:41.3]} 8. Nxd4 {[%clk
0:02:25]} 8... bxc4 {[%clk 0:02:39]} 9. Nf5 {[%clk 0:02:25.7]} 9... Bxf5 {[%clk
0:02:24.5]} 10. exf5 {[%clk 0:02:26.2]} 10... cxd3 {[%clk 0:02:22.1]} 11. Nxc5
{[%clk 0:02:26.3]} 11... dxc5 {[%clk 0:02:22.7]} 12. Qxd3 {[%clk 0:02:26.7]}
12... Qxd3 {[%clk 0:02:15]} 13. cxd3 {[%clk 0:02:27.6]} 13... O-O-O {[%clk
0:02:08.5]} 14. Ke2 {[%clk 0:02:15.3]} 14... Nd5 {[%clk 0:02:00.3]} 15. Be3
{[%clk 0:02:11.7]} 15... Rhe8 {[%clk 0:01:33.2]} 16. Rac1 {[%clk 0:01:47.6]}
16... Nf4+ {[%clk 0:01:29.1]} 17. Bxf4 {[%clk 0:01:34.9]} 17... exf4+ {[%clk
0:01:31]} 18. Kd2 {[%clk 0:01:36.2]} 18... Re5 {[%clk 0:01:18.8]} 19. f6 {[%clk
0:01:07]} 19... gxf6 {[%clk 0:00:44.6]} 20. Rc4 {[%clk 0:00:44.7]} 20... Red5
{[%clk 0:00:39]} 21. Rxf4 {[%clk 0:00:24.1]} 21... Rxd3+ {[%clk 0:00:39.2]} 22.
Kc2 {[%clk 0:00:25.1]} 22... Rd2+ {[%clk 0:00:40.2]} 23. Kb1 {[%clk 0:00:26.4]}
23... R8d6 {[%clk 0:00:34.9]} 24. Rc1 {[%clk 0:00:26.5]} 24... Rb6 {[%clk
0:00:35.6]} 25. Rc2 {[%clk 0:00:20.5]} 25... Rd1+ {[%clk 0:00:36.3]} 26. Rc1
{[%clk 0:00:21.5]} 26... Rd2 {[%clk 0:00:34.4]} 27. Rc2 {[%clk 0:00:19.9]} 27...
Rd1+ {[%clk 0:00:31.2]} 28. Rc1 {[%clk 0:00:20.8]} 28... Rd4 {[%clk 0:00:33.1]}
29. Rf3 {[%clk 0:00:13.5]} 29... Rd2 {[%clk 0:00:16.1]} 30. Rc2 {[%clk 0:00:12]}
30... Rd1+ {[%clk 0:00:17.4]} 31. Rc1 {[%clk 0:00:13.4]} 31... Rd2 {[%clk
0:00:18.8]} 32. Rc2 {[%clk 0:00:14.9]} 32... Rd1+ {[%clk 0:00:19.9]} 33. Rc1
{[%clk 0:00:16.3]} 33... Rd2 {[%clk 0:00:20.7]} 1/2-1/2

[Event "*** Titled Tuesday Blitz"]
[Site "Chess.com"]
[Date "2018.07.03"]
[Round "1"]
[White "David_Paravyan"]
[Black "bugsbunny444"]
[Result "1-0"]
[WhiteElo "2716"]
[BlackElo "2387"]
[TimeControl "180+2"]
[EndTime "13:08:04 PDT"]
[Termination "David_Paravyan won by resignation"]

1. Nf3 {[%clk 0:02:58.6]} 1... d5 {[%clk 0:02:59.8]} 2. d4 {[%clk 0:02:59.1]}
2... e6 {[%clk 0:03:00.3]} 3. c4 {[%clk 0:03:00.1]} 3... c6 {[%clk 0:03:01.3]}
4. Nc3 {[%clk 0:03:01.5]} 4... Nf6 {[%clk 0:03:02]} 5. Bg5 {[%clk 0:03:01.5]}
5... Nbd7 {[%clk 0:03:01.7]} 6. e3 {[%clk 0:03:02.4]} 6... Qa5 {[%clk
0:03:02.6]} 7. Nd2 {[%clk 0:03:03.1]} 7... dxc4 {[%clk 0:03:01.3]} 8. Bxf6
{[%clk 0:03:02.9]} 8... Nxf6 {[%clk 0:03:03.2]} 9. Nxc4 {[%clk 0:03:04.2]} 9...
Qc7 {[%clk 0:03:00.9]} 10. g3 {[%clk 0:03:04.6]} 10... Be7 {[%clk 0:03:01.5]}
11. Bg2 {[%clk 0:03:05.2]} 11... O-O {[%clk 0:03:02.6]} 12. O-O {[%clk
0:03:06.1]} 12... Rd8 {[%clk 0:03:03.6]} 13. Qe2 {[%clk 0:02:52.4]} 13... Bd7
{[%clk 0:02:58.9]} 14. Rac1 {[%clk 0:02:52.2]} 14... Rac8 {[%clk 0:02:46.9]} 15.
a3 {[%clk 0:02:48.8]} 15... c5 {[%clk 0:02:43.8]} 16. Ne5 {[%clk 0:02:47.1]}
16... cxd4 {[%clk 0:02:31.8]} 17. exd4 {[%clk 0:02:49]} 17... Be8 {[%clk
0:02:22.7]} 18. Rfd1 {[%clk 0:02:48.5]} 18... Qb6 {[%clk 0:02:08.8]} 19. d5
{[%clk 0:02:43.1]} 19... exd5 {[%clk 0:01:58.2]} 20. Nxd5 {[%clk 0:02:42.8]}
20... Nxd5 {[%clk 0:01:50.1]} 21. Rxc8 {[%clk 0:02:36.1]} 21... Rxc8 {[%clk
0:01:49.3]} 22. Bxd5 {[%clk 0:02:36]} 22... Bf6 {[%clk 0:01:40.7]} 23. Re1
{[%clk 0:01:47.2]} 23... g6 {[%clk 0:01:07.7]} 24. Qg4 {[%clk 0:01:19.8]} 24...
Rc2 {[%clk 0:00:41.9]} 25. Qf4 {[%clk 0:00:41.1]} 25... Kg7 {[%clk 0:00:41.9]}
26. Ng4 {[%clk 0:00:38.3]} 26... Bd7 {[%clk 0:00:21.6]} 27. Qh6+ {[%clk
0:00:27.2]} 27... Kg8 {[%clk 0:00:22.9]} 28. Bxf7+ {[%clk 0:00:25.1]} 28... Kxf7
{[%clk 0:00:20.6]} 29. Qxh7+ {[%clk 0:00:22.2]} 29... Bg7 {[%clk 0:00:05]} 30.
Ne5+ {[%clk 0:00:22.5]} 30... Ke6 {[%clk 0:00:05.1]} 31. Nc4+ {[%clk 0:00:20.7]}
1-0

[Event "*** Titled Tuesday Blitz"]
[Site "Chess.com"]
[Date "2018.07.03"]
[Round "1"]
[White "Mikhail_Antipov"]
[Black "vovachesss"]
[Result "1-0"]
[WhiteElo "2827"]
[BlackElo "2428"]
[TimeControl "180+2"]
[EndTime "13:08:05 PDT"]
[Termination "Mikhail_Antipov won by checkmate"]

1. e4 {[%clk 0:02:57.7]} 1... e5 {[%clk 0:02:57.3]} 2. Nf3 {[%clk 0:02:58.2]}
2... d5 {[%clk 0:02:58.1]} 3. exd5 {[%clk 0:02:58.4]} 3... e4 {[%clk 0:02:58.3]}
4. Qe2 {[%clk 0:02:59.5]} 4... Nf6 {[%clk 0:02:57.5]} 5. Nc3 {[%clk 0:03:00.6]}
5... Be7 {[%clk 0:02:58]} 6. Nxe4 {[%clk 0:03:01.6]} 6... O-O {[%clk 0:02:59.3]}
7. d3 {[%clk 0:02:59.8]} 7... Re8 {[%clk 0:02:59.1]} 8. Bd2 {[%clk 0:02:42.9]}
8... Nxd5 {[%clk 0:02:58.1]} 9. Qd1 {[%clk 0:02:33]} 9... f5 {[%clk 0:02:18.5]}
10. Nc3 {[%clk 0:02:33.4]} 10... Nxc3 {[%clk 0:02:09.7]} 11. Bxc3 {[%clk
0:02:22.7]} 11... Bf6+ {[%clk 0:02:10.4]} 12. Be2 {[%clk 0:02:23.4]} 12... Bxc3+
{[%clk 0:02:09]} 13. bxc3 {[%clk 0:02:25.3]} 13... Qe7 {[%clk 0:02:10.4]} 14.
Qd2 {[%clk 0:02:20]} 14... Nc6 {[%clk 0:02:10.2]} 15. Kf1 {[%clk 0:01:40.3]}
15... Be6 {[%clk 0:02:01.8]} 16. a4 {[%clk 0:01:40.7]} 16... Rad8 {[%clk
0:02:00.9]} 17. h4 {[%clk 0:01:39.7]} 17... h6 {[%clk 0:01:59.7]} 18. h5 {[%clk
0:01:40.1]} 18... Bf7 {[%clk 0:01:59.1]} 19. d4 {[%clk 0:01:19.5]} 19... Na5
{[%clk 0:01:55.7]} 20. Re1 {[%clk 0:01:02.4]} 20... Qa3 {[%clk 0:01:53.1]} 21.
Bd3 {[%clk 0:00:57.6]} 21... Bc4 {[%clk 0:01:46.5]} 22. Ne5 {[%clk 0:00:49.1]}
22... Qxa4 {[%clk 0:01:37.2]} 23. Rh3 {[%clk 0:00:39.9]} 23... c5 {[%clk
0:01:32.4]} 24. Rg3 {[%clk 0:00:35.4]} 24... Rd6 {[%clk 0:01:21.1]} 25. Nxc4
{[%clk 0:00:28.1]} 25... Rde6 {[%clk 0:01:00.5]} 26. Ne5 {[%clk 0:00:12.5]}
26... cxd4 {[%clk 0:00:55.4]} 27. Qf4 {[%clk 0:00:11.6]} 27... Nc4 {[%clk
0:00:32.1]} 28. Qxf5 {[%clk 0:00:11.5]} 28... Nxe5 {[%clk 0:00:03.9]} 29. Qh7+
{[%clk 0:00:12.2]} 29... Kf8 {[%clk 0:00:04.7]} 30. Qxg7# {[%clk 0:00:14.1]} 1-0

[Event "*** Titled Tuesday Blitz"]
[Site "Chess.com"]
[Date "2018.07.03"]
[Round "1"]
[White "Firouzja2003"]
[Black "dachessmandan"]
[Result "1-0"]
[WhiteElo "2817"]
[BlackElo "2427"]
[TimeControl "180+2"]
[EndTime "13:08:07 PDT"]
[Termination "Firouzja2003 won by resignation"]

1. e4 {[%clk 0:03:00.6]} 1... e5 {[%clk 0:03:00]} 2. Nf3 {[%clk 0:03:00.7]} 2...
Nc6 {[%clk 0:03:00.6]} 3. Bc4 {[%clk 0:03:01.8]} 3... Be7 {[%clk 0:03:01]} 4.
O-O {[%clk 0:03:00.1]} 4... d6 {[%clk 0:03:02]} 5. c3 {[%clk 0:02:59.9]} 5...
Nf6 {[%clk 0:03:03]} 6. d3 {[%clk 0:02:59.9]} 6... O-O {[%clk 0:03:03.4]} 7.
Nbd2 {[%clk 0:03:01.4]} 7... a6 {[%clk 0:03:04.1]} 8. Bb3 {[%clk 0:03:02.2]}
8... b5 {[%clk 0:02:41]} 9. Re1 {[%clk 0:02:59.2]} 9... Bb7 {[%clk 0:02:40.9]}
10. Nf1 {[%clk 0:02:54.2]} 10... Na5 {[%clk 0:02:20.2]} 11. Bc2 {[%clk
0:02:54.2]} 11... c5 {[%clk 0:02:21.3]} 12. Ng3 {[%clk 0:02:53.5]} 12... g6
{[%clk 0:02:20]} 13. d4 {[%clk 0:02:50.2]} 13... Qc7 {[%clk 0:02:12.1]} 14. d5
{[%clk 0:02:44]} 14... Rfe8 {[%clk 0:01:46.6]} 15. b3 {[%clk 0:02:44.1]} 15...
Bf8 {[%clk 0:01:45.9]} 16. Bg5 {[%clk 0:02:33.4]} 16... Bg7 {[%clk 0:01:45.5]}
17. Qc1 {[%clk 0:02:34]} 17... Bc8 {[%clk 0:01:32.9]} 18. h3 {[%clk 0:02:27.1]}
18... Bd7 {[%clk 0:01:23.3]} 19. Nh2 {[%clk 0:02:19.1]} 19... c4 {[%clk
0:01:20]} 20. b4 {[%clk 0:02:20]} 20... Nb7 {[%clk 0:01:20.8]} 21. f4 {[%clk
0:02:14.7]} 21... Qb6+ {[%clk 0:01:03.8]} 22. Kh1 {[%clk 0:02:11.4]} 22... Qf2
{[%clk 0:00:58]} 23. Nhf1 {[%clk 0:01:46.1]} 23... exf4 {[%clk 0:00:53.8]} 24.
Bxf4 {[%clk 0:01:47.1]} 24... Nxd5 {[%clk 0:00:33.9]} 25. Bd2 {[%clk 0:01:03.7]}
25... Nxc3 {[%clk 0:00:30.6]} 26. e5 {[%clk 0:01:05.1]} 26... Bxe5 {[%clk
0:00:29.1]} 27. Rxe5 {[%clk 0:01:03.2]} 27... dxe5 {[%clk 0:00:27.1]} 28. Bxc3
{[%clk 0:01:03.4]} 28... Bc6 {[%clk 0:00:28]} 29. Ne4 {[%clk 0:01:02.5]} 29...
Bxe4 {[%clk 0:00:24]} 30. Bxe4 {[%clk 0:01:04.4]} 30... Rab8 {[%clk 0:00:25.5]}
31. Ne3 {[%clk 0:01:00.6]} 31... Nd6 {[%clk 0:00:26.1]} 32. Ng4 {[%clk
0:01:00.8]} 32... Qf4 {[%clk 0:00:24.5]} 33. Qxf4 {[%clk 0:00:59.9]} 33... exf4
{[%clk 0:00:23.9]} 34. Nf6+ {[%clk 0:01:01.7]} 34... Kf8 {[%clk 0:00:25.4]} 35.
Bc6 {[%clk 0:01:02.6]} 35... Re2 {[%clk 0:00:25]} 36. Nd7+ {[%clk 0:01:03.3]}
36... Ke7 {[%clk 0:00:24.7]} 37. Nxb8 {[%clk 0:01:05.2]} 37... Nf5 {[%clk
0:00:26.1]} 38. Re1 {[%clk 0:01:01.3]} 38... Ng3+ {[%clk 0:00:27.1]} 39. Kg1
{[%clk 0:01:02.1]} 39... Kd6 {[%clk 0:00:28.8]} 40. Bf3 {[%clk 0:01:02.3]} 40...
Rc2 {[%clk 0:00:26.6]} 41. Be5+ {[%clk 0:01:02.5]} 1-0

[Event "*** Titled Tuesday Blitz"]
[Site "Chess.com"]
[Date "2018.07.03"]
[Round "1"]
[White "gmcorrales"]
[Black "stolencandy13"]
[Result "1-0"]
[WhiteElo "2643"]
[BlackElo "2313"]
[TimeControl "180+2"]
[EndTime "13:08:13 PDT"]
[Termination "gmcorrales won by checkmate"]

1. d4 {[%clk 0:02:53.9]} 1... Nf6 {[%clk 0:02:57.9]} 2. Bf4 {[%clk 0:02:51.5]}
2... d5 {[%clk 0:02:55]} 3. e3 {[%clk 0:02:39.9]} 3... c5 {[%clk 0:02:45.4]} 4.
Nf3 {[%clk 0:02:22.7]} 4... Nc6 {[%clk 0:02:44.6]} 5. Nbd2 {[%clk 0:02:21.4]}
5... cxd4 {[%clk 0:02:43.7]} 6. exd4 {[%clk 0:02:19.6]} 6... Bg4 {[%clk
0:02:36.2]} 7. c3 {[%clk 0:02:12.8]} 7... e6 {[%clk 0:02:34.9]} 8. Qb3 {[%clk
0:02:08.6]} 8... Qb6 {[%clk 0:02:23.7]} 9. Qxb6 {[%clk 0:02:08.9]} 9... axb6
{[%clk 0:02:24.2]} 10. Ne5 {[%clk 0:02:05.2]} 10... Nxe5 {[%clk 0:02:22.8]} 11.
Bxe5 {[%clk 0:02:07.1]} 11... Be7 {[%clk 0:02:16.4]} 12. Bb5+ {[%clk 0:02:07.1]}
12... Kd8 {[%clk 0:02:06.6]} 13. f4 {[%clk 0:01:50.9]} 13... h5 {[%clk
0:01:59.3]} 14. O-O {[%clk 0:01:48.4]} 14... Bf5 {[%clk 0:01:51.8]} 15. Bxf6
{[%clk 0:01:41.7]} 15... Bxf6 {[%clk 0:01:48.4]} 16. Nf3 {[%clk 0:01:41.1]}
16... Ke7 {[%clk 0:01:43.8]} 17. Ne5 {[%clk 0:01:40.4]} 17... Ra5 {[%clk
0:01:37.5]} 18. a4 {[%clk 0:01:40.8]} 18... Be4 {[%clk 0:01:16.8]} 19. b4 {[%clk
0:01:13.2]} 19... Raa8 {[%clk 0:01:15.2]} 20. Nd7 {[%clk 0:00:59.8]} 20... Rac8
{[%clk 0:01:11.3]} 21. Rac1 {[%clk 0:00:59]} 21... Rc7 {[%clk 0:01:07.2]} 22.
Nxf6 {[%clk 0:00:48.5]} 22... Kxf6 {[%clk 0:01:07.6]} 23. Rfe1 {[%clk
0:00:44.8]} 23... Rhc8 {[%clk 0:01:08.1]} 24. c4 {[%clk 0:00:45.2]} 24... Kf5
{[%clk 0:01:03.4]} 25. c5 {[%clk 0:00:34.3]} 25... Kxf4 {[%clk 0:00:57.3]} 26.
Rc3 {[%clk 0:00:34.7]} 26... Kg5 {[%clk 0:00:51.7]} 27. Rg3+ {[%clk 0:00:34.1]}
27... Kf6 {[%clk 0:00:51.2]} 28. Rf1+ {[%clk 0:00:33.5]} 28... Bf5 {[%clk
0:00:52.2]} 29. cxb6 {[%clk 0:00:34.4]} 29... Rc3 {[%clk 0:00:52.3]} 30. Rxc3
{[%clk 0:00:29.7]} 30... Rxc3 {[%clk 0:00:54.2]} 31. a5 {[%clk 0:00:26.6]} 31...
Rc8 {[%clk 0:00:32.5]} 32. Bd7 {[%clk 0:00:19.8]} 32... Rb8 {[%clk 0:00:32.4]}
33. b5 {[%clk 0:00:20.4]} 33... Ke7 {[%clk 0:00:33.6]} 34. Bc6 {[%clk
0:00:20.7]} 34... Kd6 {[%clk 0:00:30.8]} 35. Rc1 {[%clk 0:00:20.1]} 35... bxc6
{[%clk 0:00:30.7]} 36. Rxc6+ {[%clk 0:00:22]} 36... Kd7 {[%clk 0:00:31.9]} 37.
a6 {[%clk 0:00:23.4]} 37... e5 {[%clk 0:00:31.7]} 38. a7 {[%clk 0:00:24.4]}
38... Ra8 {[%clk 0:00:31.1]} 39. dxe5 {[%clk 0:00:22]} 39... d4 {[%clk
0:00:30.5]} 40. b7 {[%clk 0:00:21.3]} 40... Rxa7 {[%clk 0:00:31.5]} 41. b8=Q
{[%clk 0:00:22.6]} 41... d3 {[%clk 0:00:31.9]} 42. Rd6+ {[%clk 0:00:22.8]} 42...
Ke7 {[%clk 0:00:33.2]} 43. Qd8# {[%clk 0:00:24.7]} 1-0